fUSD/lending_fUSD_20260527
["ID","MTS","AMOUNT","RATE_DAILY","PERIOD"]
[423155662,1779896799000,2280.83,5.912e-05,2]
[423155666,1779896800000,2280.83,7.157e-05,2]
[423155665,1779896800000,2280.83,6.845e-05,2]
[423155664,1779896800000,2280.83,6.534e-05,2]
[423155663,1779896800000,2280.83,6.223e-05,2]
[423155670,1779896801000,2280.83,8.401e-05,2]
[423155669,1779896801000,2280.83,8.09e-05,2]
[423155668,1779896801000,2280.83,7.779e-05,2]
[423155667,1779896801000,2280.83,7.468e-05,2]
[423155671,1779896802000,2280.83,8.712e-05,2]
[423155672,1779896802000,2280.83,9.024e-05,2]
[423155674,1779896802000,2280.83,9.646e-05,2]
[423155675,1779896802000,2280.83,9.957e-05,2]
[423155673,1779896802000,2280.83,9.335e-05,2]
[423155677,1779896803000,2280.83,0.00010579,2]
[423155676,1779896803000,2280.83,0.00010268,2]
[423155678,1779896819000,182.15,0.00010106,2]
[423155685,1779896843000,-152.0,0.00012085,2]
[423155679,1779896843000,-2280.83,0.0001089,2]
[423155680,1779896843000,-182.15,0.00011116,2]
[423155681,1779896843000,-2280.83,0.00011202,2]
[423155682,1779896843000,-2280.83,0.00011513,2]
[423155683,1779896843000,-2280.83,0.00011824,2]
[423155684,1779896843000,-510.44952537,0.00011829,2]
[423155693,1779896843000,-150.0,0.00012551,2]
[423155688,1779896843000,-213.93849686,0.00012329,2]
[423155690,1779896843000,-150.0,0.00012551,2]
[423155687,1779896843000,-182.15,0.00012127,2]
[423155689,1779896843000,-169.36,0.00012329,2]
[423155691,1779896843000,-150.0,0.00012551,2]
[423155694,1779896843000,-7.4750295,0.00012551,2]
[423155692,1779896843000,-150.0,0.00012551,2]
[423155686,1779896843000,-152.0,0.0001211,2]
[423155704,1779896950000,-300.18925229,0.00012579,2]
[423155707,1779896950000,-300.18925229,0.00012593,2]
[423155710,1779896950000,-150.0,0.00012606,2]
[423155712,1779896950000,-150.0,0.00012613,2]
[423155709,1779896950000,-150.0,0.00012594,2]
[423155713,1779896950000,-150.0,0.00012614,2]
[423155708,1779896950000,-150.0,0.00012594,2]
[423155711,1779896950000,-300.18925229,0.00012607,2]
[423155706,1779896950000,-150.0,0.00012582,2]
[423155701,1779896950000,-300.18925229,0.00012551,2]
[423155703,1779896950000,-150.0,0.00012572,2]
[423155700,1779896950000,-150.0,0.00012551,2]
[423155715,1779896950000,-300.18925229,0.00012621,2]
[423155702,1779896950000,-300.18925229,0.00012565,2]
[423155699,1779896950000,-150.0,0.00012551,2]
[423155696,1779896950000,-142.5249705,0.00012551,2]
[423155697,1779896950000,-150.0,0.00012551,2]
[423155695,1779896950000,-519.21,0.0001191,2]
[423155705,1779896950000,-150.0,0.00012582,2]
[423155714,1779896950000,-150.0,0.00012616,2]
[423155698,1779896950000,-150.0,0.00012551,2]
[423155717,1779896950000,-1852.42,0.00012632,2]
[423155716,1779896950000,-300.0,0.00012631,2]
[423155735,1779896950000,-150.0,0.00012703,2]
[423155737,1779896950000,-29.79960975,0.00012706,2]
[423155734,1779896950000,-300.18925229,0.00012692,2]
[423155733,1779896950000,-150.0,0.00012681,2]
[423155732,1779896950000,-150.0,0.00012681,2]
[423155731,1779896950000,-300.18925229,0.00012677,2]
[423155730,1779896950000,-150.0,0.00012677,2]
[423155726,1779896950000,-150.0,0.00012662,2]
[423155729,1779896950000,-150.0,0.00012677,2]
[423155736,1779896950000,-150.0,0.00012706,2]
[423155725,1779896950000,-150.0,0.0001266,2]
[423155727,1779896950000,-300.18925229,0.00012663,2]
[423155720,1779896950000,-150.0,0.00012638,2]
[423155718,1779896950000,-300.18925229,0.00012635,2]
[423155723,1779896950000,-300.18925229,0.00012649,2]
[423155719,1779896950000,-150.0,0.00012638,2]
[423155721,1779896950000,-150.0,0.00012644,2]
[423155724,1779896950000,-150.0,0.00012658,2]
[423155728,1779896950000,-150.0,0.00012675,2]
[423155722,1779896950000,-150.0,0.00012646,2]
[423155739,1779896957000,-403.3276662,0.00012708,2]
[423155738,1779896957000,-270.38964254,0.00012706,2]
[423155748,1779896959000,-150.0,0.00012741,2]
[423155750,1779896959000,-150.0,0.00012747,2]
[423155749,1779896959000,-311.812576,0.00012741,2]
[423155747,1779896959000,-150.0,0.00012737,2]
[423155746,1779896959000,-300.18925229,0.00012734,2]
[423155740,1779896959000,-52.25821905,0.00012708,2]
[423155743,1779896959000,-300.18925229,0.0001272,2]
[423155744,1779896959000,-150.0,0.00012725,2]
[423155742,1779896959000,-150.0,0.00012718,2]
[423155741,1779896959000,-150.0,0.00012709,2]
[423155751,1779896959000,-300.18925229,0.00012748,2]
[423155745,1779896959000,-150.0,0.00012725,2]
[423155753,1779896959000,-300.18925229,0.00012762,2]
[423155755,1779896959000,-150.0,0.00012768,2]
[423155752,1779896959000,-150.0,0.0001275,2]
[423155754,1779896959000,-150.0,0.00012765,2]
[423155766,1779896959000,-41.41221639,0.00012804,2]
[423155765,1779896959000,-150.0,0.00012804,2]
[423155763,1779896959000,-150.0,0.0001279,2]
[423155761,1779896959000,-300.18925229,0.00012776,2]
[423155764,1779896959000,-150.0,0.00012799,2]
[423155756,1779896959000,-150.0,0.00012769,2]
[423155759,1779896959000,-150.0,0.00012773,2]
[423155758,1779896959000,-195.116635,0.00012769,2]
[423155757,1779896959000,-150.0,0.00012769,2]
[423155760,1779896959000,-150.0,0.00012774,2]
[423155762,1779896959000,-300.18925229,0.0001279,2]
[423155777,1779896962000,-150.0,0.00012856,2]
[423155781,1779896962000,-150.0,0.00012868,2]
[423155782,1779896962000,-150.0,0.00012872,2]
[423155779,1779896962000,-150.0,0.00012861,2]
[423155780,1779896962000,-300.18925229,0.00012861,2]
[423155778,1779896962000,-150.0,0.00012856,2]
[423155776,1779896962000,-300.18925229,0.00012846,2]
[423155772,1779896962000,-150.0,0.0001283,2]
[423155769,1779896962000,-150.0,0.00012812,2]
[423155775,1779896962000,-150.0,0.00012836,2]
[423155773,1779896962000,-300.18925229,0.00012832,2]
[423155770,1779896962000,-300.18925229,0.00012818,2]
[423155771,1779896962000,-150.0,0.0001283,2]
[423155767,1779896962000,-258.7770359,0.00012804,2]
[423155768,1779896962000,-150.0,0.00012812,2]
[423155784,1779896962000,-150.0,0.00012878,2]
[423155774,1779896962000,-150.0,0.00012834,2]
[423155785,1779896962000,-150.0,0.00012885,2]
[423155794,1779896962000,-150.0,0.00012923,2]
[423155787,1779896962000,-150.0,0.00012892,2]
[423155804,1779896962000,-131.26179824,0.00012963,2]
[423155802,1779896962000,-150.0,0.00012954,2]
[423155803,1779896962000,-300.18925229,0.00012959,2]
[423155801,1779896962000,-150.0,0.00012949,2]
[423155800,1779896962000,-300.18925229,0.00012945,2]
[423155799,1779896962000,-150.0,0.00012943,2]
[423155798,1779896962000,-150.0,0.00012943,2]
[423155796,1779896962000,-300.18925229,0.00012931,2]
[423155797,1779896962000,-150.0,0.00012941,2]
[423155793,1779896962000,-150.0,0.00012921,2]
[423155783,1779896962000,-300.18925229,0.00012875,2]
[423155791,1779896962000,-300.18925229,0.00012903,2]
[423155792,1779896962000,-300.18925229,0.00012917,2]
[423155790,1779896962000,-150.0,0.00012899,2]
[423155789,1779896962000,-150.0,0.00012899,2]
[423155788,1779896962000,-150.0,0.00012899,2]
[423155786,1779896962000,-300.18925229,0.00012889,2]
[423155795,1779896962000,-150.0,0.00012931,2]
[423155808,1779897031000,-407.32486137,0.00012205,2]
[423155807,1779897031000,-152.0,0.00012104,2]
[423155810,1779897031000,-1200.0,0.00012222,2]
[423155809,1779897031000,-4138.80513863,0.00012205,2]
[423155812,1779897031000,-300.0,0.00012528,2]
[423155811,1779897031000,-3431.82,0.00012223,2]
[423155861,1779897032000,-150.0,0.00013108,2]
[423155851,1779897032000,-150.0,0.00013074,2]
[423155850,1779897032000,-300.18925229,0.00013072,2]
[423155848,1779897032000,-150.0,0.00013058,2]
[423155849,1779897032000,-300.18925229,0.00013058,2]
[423155856,1779897032000,-150.0,0.00013089,2]
[423155857,1779897032000,-150.0,0.00013095,2]
[423155867,1779897032000,-300.18925229,0.00013128,2]
[423155858,1779897032000,-5958.7836,0.00013096,2]
[423155847,1779897032000,-150.0,0.00013053,2]
[423155859,1779897032000,-300.18925229,0.000131,2]
[423155866,1779897032000,-150.0,0.00013121,2]
[423155870,1779897032000,-150.0,0.00013139,2]
[423155860,1779897032000,-150.0,0.00013108,2]
[423155863,1779897032000,-300.18925229,0.00013114,2]
[423155865,1779897032000,-150.0,0.00013117,2]
[423155862,1779897032000,-208.699696,0.00013114,2]
[423155868,1779897032000,-182.15,0.00013137,2]
[423155869,1779897032000,-150.0,0.00013139,2]
[423155879,1779897032000,-150.0,0.0001317,2]
[423155872,1779897032000,-300.18925229,0.00013142,2]
[423155877,1779897032000,-150.0,0.00013161,2]
[423155873,1779897032000,-150.0,0.00013148,2]
[423155845,1779897032000,-150.0,0.00013052,2]
[423155874,1779897032000,-150.0,0.00013153,2]
[423155864,1779897032000,-150.0,0.00013117,2]
[423155852,1779897032000,-150.0,0.00013074,2]
[423155819,1779897032000,-150.0,0.00012965,2]
[423155854,1779897032000,-300.18925229,0.00013086,2]
[423155871,1779897032000,-3431.82,0.0001314,2]
[423155816,1779897032000,-1000.0,0.00012963,2]
[423155817,1779897032000,-1000.0,0.00012963,2]
[423155815,1779897032000,-18.73820176,0.00012963,2]
[423155814,1779897032000,-3431.82,0.00012835,2]
[423155813,1779897032000,-3431.82,0.00012529,2]
[423155821,1779897032000,-150.0,0.0001298,2]
[423155831,1779897032000,-300.18925229,0.00013016,2]
[423155826,1779897032000,-150.0,0.00012994,2]
[423155825,1779897032000,-300.18925229,0.00012987,2]
[423155818,1779897032000,-290.72886415,0.00012963,2]
[423155827,1779897032000,-150.0,0.00012997,2]
[423155855,1779897032000,-150.0,0.00013087,2]
[423155828,1779897032000,-300.18925229,0.00013001,2]
[423155834,1779897032000,-300.18925229,0.0001303,2]
[423155832,1779897032000,-150.0,0.00013026,2]
[423155823,1779897032000,-150.0,0.00012986,2]
[423155839,1779897032000,-150.0,0.0001303,2]
[423155830,1779897032000,-150.0,0.00013016,2]
[423155822,1779897032000,-150.0,0.00012985,2]
[423155824,1779897032000,-150.0,0.00012986,2]
[423155829,1779897032000,-150.0,0.00013008,2]
[423155820,1779897032000,-300.18925229,0.00012973,2]
[423155836,1779897032000,-150.0,0.0001303,2]
[423155853,1779897032000,-150.0,0.00013078,2]
[423155843,1779897032000,-150.0,0.00013047,2]
[423155841,1779897032000,-300.18925229,0.00013044,2]
[423155876,1779897032000,-150.0,0.00013161,2]
[423155909,1779897032000,-150.0,0.00013294,2]
[423155878,1779897032000,-150.0,0.00013164,2]
[423155910,1779897032000,-300.18925229,0.00013297,2]
[423155906,1779897032000,-300.18925229,0.00013283,2]
[423155912,1779897032000,-150.0,0.00013311,2]
[423155913,1779897032000,-300.18925229,0.00013311,2]
[423155916,1779897032000,-300.18925229,0.00013325,2]
[423155915,1779897032000,-150.0,0.00013325,2]
[423155917,1779897032000,-150.0,0.00013332,2]
[423155919,1779897032000,-150.0,0.00013335,2]
[423155929,1779897032000,-150.0,0.00013379,2]
[423155918,1779897032000,-150.0,0.00013335,2]
[423155921,1779897032000,-150.0,0.00013343,2]
[423155926,1779897032000,-731.90849999,0.00013358,2]
[423155914,1779897032000,-150.0,0.00013313,2]
[423155923,1779897032000,-300.18925229,0.00013354,2]
[423155922,1779897032000,-150.0,0.00013348,2]
[423155927,1779897032000,-300.18925229,0.00013368,2]
[423155925,1779897032000,-150.0,0.00013357,2]
[423155928,1779897032000,-150.0,0.00013375,2]
[423155930,1779897032000,-150.0,0.00013379,2]
[423155932,1779897032000,-150.0,0.00013387,2]
[423155931,1779897032000,-300.18925229,0.00013382,2]
[423155933,1779897032000,-150.0,0.00013387,2]
[423155936,1779897032000,-150.0,0.00013406,2]
[423155935,1779897032000,-150.0,0.000134,2]
[423155875,1779897032000,-300.18925229,0.00013156,2]
[423155934,1779897032000,-300.18925229,0.00013396,2]
[423155924,1779897032000,-150.0,0.00013356,2]
[423155908,1779897032000,-150.0,0.00013292,2]
[423155920,1779897032000,-300.18925229,0.0001334,2]
[423155907,1779897032000,-150.0,0.00013292,2]
[423155880,1779897032000,-300.18925229,0.0001317,2]
[423155911,1779897032000,-150.0,0.00013302,2]
[423155891,1779897032000,-150.0,0.00013216,2]
[423155892,1779897032000,-150.0,0.0001322,2]
[423155886,1779897032000,-300.18925229,0.00013199,2]
[423155885,1779897032000,-150.0,0.00013194,2]
[423155887,1779897032000,-150.0,0.00013201,2]
[423155889,1779897032000,-150.0,0.00013204,2]
[423155884,1779897032000,-300.18925229,0.00013185,2]
[423155888,1779897032000,-150.0,0.00013204,2]
[423155883,1779897032000,-150.0,0.00013185,2]
[423155882,1779897032000,-150.0,0.00013183,2]
[423155890,1779897032000,-300.18925229,0.00013213,2]
[423155894,1779897032000,-300.18925229,0.00013227,2]
[423155881,1779897032000,-186.86,0.00013174,2]
[423155893,1779897032000,-150.0,0.00013226,2]
[423155898,1779897032000,-150.0,0.00013248,2]
[423155902,1779897032000,-300.18925229,0.00013269,2]
[423155896,1779897032000,-300.18925229,0.00013241,2]
[423155903,1779897032000,-150.0,0.0001327,2]
[423155897,1779897032000,-150.0,0.00013248,2]
[423155895,1779897032000,-150.0,0.00013232,2]
[423155899,1779897032000,-150.0,0.00013248,2]
[423155901,1779897032000,-150.0,0.00013263,2]
[423155900,1779897032000,-300.18925229,0.00013255,2]
[423155904,1779897032000,-150.0,0.00013276,2]
[423155905,1779897032000,-150.0,0.0001328,2]
[423155973,1779897033000,-300.18925229,0.00013551,2]
[423155970,1779897033000,-300.18925229,0.00013537,2]
[423155977,1779897033000,-150.0,0.00013565,2]
[423155971,1779897033000,-150.0,0.00013542,2]
[423155969,1779897033000,-150.0,0.00013533,2]
[423155975,1779897033000,-150.0,0.00013553,2]
[423155974,1779897033000,-150.0,0.00013553,2]
[423155976,1779897033000,-150.0,0.00013555,2]
[423155978,1779897033000,-300.18925229,0.00013565,2]
[423155979,1779897033000,-150.0,0.00013573,2]
[423155968,1779897033000,-150.0,0.00013531,2]
[423155972,1779897033000,-150.0,0.00013547,2]
[423155985,1779897033000,-150.0,0.00013597,2]
[423155980,1779897033000,-150.0,0.00013575,2]
[423155991,1779897033000,-166.66,0.00013614,2]
[423155983,1779897033000,-300.18925229,0.00013593,2]
[423155982,1779897033000,-366.16,0.00013585,2]
[423155987,1779897033000,-3500.0,0.000136,4]
[423155984,1779897033000,-150.0,0.00013597,2]
[423155986,1779897033000,-150.0,0.00013597,2]
[423155988,1779897033000,-150.0,0.00013604,2]
[423155989,1779897033000,-300.18925229,0.00013607,2]
[423155990,1779897033000,-150.0,0.00013611,2]
[423155993,1779897033000,-300.18925229,0.00013621,2]
[423155964,1779897033000,-150.0,0.00013509,2]
[423155981,1779897033000,-300.18925229,0.00013579,2]
[423155965,1779897033000,-150.0,0.00013511,2]
[423155942,1779897033000,-300.18925229,0.00013424,2]
[423155961,1779897033000,-150.0,0.00013501,2]
[423155992,1779897033000,-150.0,0.00013618,2]
[423155941,1779897033000,-150.0,0.00013422,2]
[423155937,1779897033000,-150.0,0.00013409,2]
[423155939,1779897033000,-150.0,0.00013418,2]
[423155938,1779897033000,-300.18925229,0.0001341,2]
[423155940,1779897033000,-150.0,0.00013422,2]
[423155954,1779897033000,-150.0,0.0001347,2]
[423155944,1779897033000,-300.18925229,0.00013438,2]
[423155943,1779897033000,-150.0,0.00013438,2]
[423155946,1779897033000,-150.0,0.00013444,2]
[423155945,1779897033000,-150.0,0.00013443,2]
[423155947,1779897033000,-1680.0,0.00013445,2]
[423155948,1779897033000,-3431.82,0.00013446,2]
[423155951,1779897033000,-150.0,0.00013466,2]
[423155949,1779897033000,-150.0,0.00013449,2]
[423155953,1779897033000,-300.18925229,0.00013466,2]
[423155952,1779897033000,-150.0,0.00013466,2]
[423155950,1779897033000,-300.18925229,0.00013452,2]
[423155955,1779897033000,-150.0,0.0001348,2]
[423155958,1779897033000,-300.18925229,0.00013494,2]
[423155957,1779897033000,-150.0,0.00013488,2]
[423155960,1779897033000,-1700.0,0.000135,4]
[423155959,1779897033000,-150.0,0.00013499,2]
[423155966,1779897033000,-150.0,0.00013516,2]
[423155956,1779897033000,-300.18925229,0.0001348,2]
[423155963,1779897033000,-150.0,0.00013509,2]
[423155962,1779897033000,-300.18925229,0.00013509,2]
[423155967,1779897033000,-300.18925229,0.00013523,2]
[423155998,1779897033000,-150.0,0.0001364,2]
[423156000,1779897033000,-12407.77,0.00013641,2]
[423156004,1779897033000,-300.18925229,0.00013663,2]
[423156029,1779897033000,-150.0,0.00013755,2]
[423156030,1779897033000,-4174.1682,0.00013757,2]
[423156036,1779897033000,-300.18925229,0.00013776,2]
[423156033,1779897033000,-23325.06390726,0.00013767,2]
[423156031,1779897033000,-150.0,0.00013759,2]
[423156039,1779897033000,-150.0,0.00013787,2]
[423156032,1779897033000,-300.18925229,0.00013762,2]
[423156034,1779897033000,-150.0,0.00013771,2]
[423156037,1779897033000,-150.0,0.00013778,2]
[423156035,1779897033000,-150.0,0.00013771,2]
[423156038,1779897033000,-255.0,0.0001378,2]
[423156041,1779897033000,-300.18925229,0.0001379,2]
[423156027,1779897033000,-300.18925229,0.00013748,2]
[423156043,1779897033000,-7100.0,0.000138,5]
[423156046,1779897033000,-150.0,0.00013814,2]
[423156045,1779897033000,-300.0,0.00013806,2]
[423156049,1779897033000,-300.18925229,0.00013818,2]
[423156044,1779897033000,-300.18925229,0.00013804,2]
[423156047,1779897033000,-150.0,0.00013814,2]
[423156048,1779897033000,-150.0,0.00013818,2]
[423156042,1779897033000,-150.0,0.00013793,2]
[423156051,1779897033000,-300.18925229,0.00013833,2]
[423156050,1779897033000,-150.0,0.00013821,2]
[423156052,1779897033000,-150.0,0.00013834,2]
[423156053,1779897033000,-150.0,0.00013836,2]
[423155995,1779897033000,-150.0,0.00013628,2]
[423156040,1779897033000,-150.0,0.0001379,2]
[423156025,1779897033000,-150.0,0.00013746,2]
[423156054,1779897033000,-150.0,0.00013838,2]
[423156022,1779897033000,-150.0,0.00013728,2]
[423155999,1779897033000,-150.0,0.0001364,2]
[423155997,1779897033000,-300.18925229,0.00013635,2]
[423156003,1779897033000,-150.0,0.00013662,2]
[423155994,1779897033000,-150.0,0.00013623,2]
[423155996,1779897033000,-150.0,0.00013635,2]
[423156002,1779897033000,-150.0,0.0001366,2]
[423156001,1779897033000,-300.18925229,0.00013649,2]
[423156005,1779897033000,-150.0,0.00013666,2]
[423156023,1779897033000,-150.0,0.00013731,2]
[423156006,1779897033000,-150.0,0.00013666,2]
[423156007,1779897033000,-300.18925229,0.00013678,2]
[423156013,1779897033000,-200.0,0.00013699,2]
[423156016,1779897033000,-300.18925229,0.00013706,2]
[423156008,1779897033000,-150.0,0.00013684,2]
[423156012,1779897033000,-150.0,0.00013697,2]
[423156021,1779897033000,-150.0,0.00013727,2]
[423156015,1779897033000,-150.0,0.00013706,2]
[423156020,1779897033000,-150.0,0.00013727,2]
[423156024,1779897033000,-300.18925229,0.00013734,2]
[423156026,1779897033000,-420.0,0.00013746,2]
[423156017,1779897033000,-300.18925229,0.0001372,2]
[423156019,1779897033000,-150.0,0.00013723,2]
[423156018,1779897033000,-150.0,0.00013722,2]
[423156011,1779897033000,-300.18925229,0.00013692,2]
[423156009,1779897033000,-150.0,0.00013684,2]
[423156014,1779897033000,-5300.0,0.000137,5]
[423156010,1779897033000,-150.0,0.00013692,2]
[423156028,1779897033000,-150.0,0.00013749,2]
[423156094,1779897034000,-300.18925229,0.00013889,2]
[423156088,1779897034000,-500.0,0.00013869,2]
[423156096,1779897034000,-165.3,0.000139,2]
[423156093,1779897034000,-150.0,0.00013883,2]
[423156084,1779897034000,-500.0,0.00013869,2]
[423156089,1779897034000,-460.37835051,0.00013869,2]
[423156092,1779897034000,-150.0,0.00013882,2]
[423156087,1779897034000,-500.0,0.00013869,2]
[423156085,1779897034000,-500.0,0.00013869,2]
[423156090,1779897034000,-300.18925229,0.00013875,2]
[423156098,1779897034000,-150.0,0.00013902,2]
[423156106,1779897034000,-173.0,0.00013945,2]
[423156095,1779897034000,-150.0,0.00013889,2]
[423156109,1779897034000,-162.01841592,0.00013945,2]
[423156099,1779897034000,-150.0,0.00013902,2]
[423156110,1779897034000,-220.58459687,0.00013945,2]
[423156101,1779897034000,-150.0,0.00013914,2]
[423156100,1779897034000,-300.18925229,0.00013903,2]
[423156102,1779897034000,-150.0,0.00013914,2]
[423156104,1779897034000,-150.0,0.00013923,2]
[423156103,1779897034000,-300.18925229,0.00013917,2]
[423156108,1779897034000,-253.74994461,0.00013945,2]
[423156105,1779897034000,-300.18925229,0.00013931,2]
[423156107,1779897034000,-241.09985538,0.00013945,2]
[423156082,1779897034000,-500.0,0.00013869,2]
[423156097,1779897034000,-8900.0,0.000139,5]
[423156077,1779897034000,-500.0,0.00013869,2]
[423156074,1779897034000,-500.0,0.00013869,2]
[423156080,1779897034000,-500.0,0.00013869,2]
[423156111,1779897034000,-222.01031952,0.00013945,2]
[423156061,1779897034000,-500.0,0.00013866,2]
[423156055,1779897034000,-300.18925229,0.00013847,2]
[423156057,1779897034000,-150.0,0.00013852,2]
[423156060,1779897034000,-300.18925229,0.00013861,2]
[423156058,1779897034000,-150.0,0.00013858,2]
[423156056,1779897034000,-150.0,0.0001385,2]
[423156059,1779897034000,-150.0,0.00013858,2]
[423156062,1779897034000,-2500.0,0.00013867,2]
[423156064,1779897034000,-96755.11314791,0.00013867,2]
[423156066,1779897034000,-1880.52424493,0.00013867,2]
[423156067,1779897034000,-598.62934303,0.00013867,2]
[423156083,1779897034000,-500.0,0.00013869,2]
[423156063,1779897034000,-873.21658609,0.00013867,2]
[423156071,1779897034000,-500.0,0.00013869,2]
[423156073,1779897034000,-500.0,0.00013869,2]
[423156072,1779897034000,-500.0,0.00013869,2]
[423156070,1779897034000,-500.0,0.00013869,2]
[423156069,1779897034000,-500.0,0.00013869,2]
[423156068,1779897034000,-431.26566619,0.00013869,2]
[423156076,1779897034000,-500.0,0.00013869,2]
[423156086,1779897034000,-500.0,0.00013869,2]
[423156075,1779897034000,-500.0,0.00013869,2]
[423156081,1779897034000,-500.0,0.00013869,2]
[423156079,1779897034000,-500.0,0.00013869,2]
[423156078,1779897034000,-647.07716269,0.00013869,2]
[423156065,1779897034000,-12254.3199035,0.00013867,2]
[423156113,1779897034000,-179.73921444,0.00013945,2]
[423156091,1779897034000,-150.0,0.0001388,2]
[423156116,1779897034000,-300.18925229,0.00013945,2]
[423156139,1779897034000,-500.0,0.00013966,2]
[423156145,1779897034000,-468.17855358,0.00013966,2]
[423156144,1779897034000,-500.0,0.00013966,2]
[423156150,1779897034000,-500.0,0.00013966,2]
[423156161,1779897034000,-500.0,0.00013966,2]
[423156152,1779897034000,-500.0,0.00013966,2]
[423156149,1779897034000,-500.0,0.00013966,2]
[423156156,1779897034000,-500.0,0.00013966,2]
[423156151,1779897034000,-500.0,0.00013966,2]
[423156153,1779897034000,-500.0,0.00013966,2]
[423156155,1779897034000,-500.0,0.00013966,2]
[423156158,1779897034000,-500.0,0.00013966,2]
[423156146,1779897034000,-500.0,0.00013966,2]
[423156154,1779897034000,-500.0,0.00013966,2]
[423156157,1779897034000,-500.0,0.00013966,2]
[423156162,1779897034000,-500.0,0.00013966,2]
[423156165,1779897034000,-547.21,0.00013966,2]
[423156164,1779897034000,-547.21,0.00013966,2]
[423156166,1779897034000,-547.21,0.00013966,2]
[423156170,1779897034000,-547.21,0.00013966,2]
[423156168,1779897034000,-547.21,0.00013966,2]
[423156171,1779897034000,-547.21,0.00013966,2]
[423156167,1779897034000,-547.21,0.00013966,2]
[423156169,1779897034000,-547.21,0.00013966,2]
[423156163,1779897034000,-150.0,0.00013966,2]
[423156117,1779897034000,-500.0,0.00013964,2]
[423156159,1779897034000,-500.0,0.00013966,2]
[423156143,1779897034000,-500.0,0.00013966,2]
[423156160,1779897034000,-500.0,0.00013966,2]
[423156137,1779897034000,-500.0,0.00013966,2]
[423156112,1779897034000,-246.48607203,0.00013945,2]
[423156122,1779897034000,-500.0,0.00013966,2]
[423156119,1779897034000,-500.0,0.00013966,2]
[423156115,1779897034000,-269.36912467,0.00013945,2]
[423156118,1779897034000,-314.3142587,0.00013966,2]
[423156114,1779897034000,-246.14008782,0.00013945,2]
[423156147,1779897034000,-500.0,0.00013966,2]
[423156120,1779897034000,-500.0,0.00013966,2]
[423156124,1779897034000,-500.0,0.00013966,2]
[423156134,1779897034000,-500.0,0.00013966,2]
[423156123,1779897034000,-500.0,0.00013966,2]
[423156135,1779897034000,-500.0,0.00013966,2]
[423156125,1779897034000,-500.0,0.00013966,2]
[423156126,1779897034000,-500.0,0.00013966,2]
[423156121,1779897034000,-500.0,0.00013966,2]
[423156131,1779897034000,-500.0,0.00013966,2]
[423156148,1779897034000,-500.0,0.00013966,2]
[423156129,1779897034000,-1099.01031239,0.00013966,5]
[423156138,1779897034000,-500.0,0.00013966,2]
[423156142,1779897034000,-500.0,0.00013966,2]
[423156140,1779897034000,-500.0,0.00013966,2]
[423156136,1779897034000,-500.0,0.00013966,2]
[423156141,1779897034000,-587.04747977,0.00013966,2]
[423156132,1779897034000,-500.0,0.00013966,2]
[423156133,1779897034000,-1099.01031239,0.00013966,5]
[423156128,1779897034000,-500.0,0.00013966,2]
[423156130,1779897034000,-500.0,0.00013966,2]
[423156127,1779897034000,-500.0,0.00013966,2]